[Event "3rd VIZAG GM-Open 2022"]
[Site "Visakapatnam"]
[Date "2022.06.13"]
[Round "5.15"]
[White "Baghdasaryan, Vahe"]
[Black "Fedorov, Alexei"]
[Result "1/2-1/2"]
[ECO "B33"]
[WhiteElo "2267"]
[BlackElo "2529"]
[Annotator "TA"]
[PlyCount "109"]
[EventDate "2022.06.13"]
[EventType "swiss"]
[EventCountry "IND"]
[SourceTitle "playchess.com"]
[Source "ChessBase"]
[SourceQuality "1"]
[TimeControl "5400+30"]

{[%evp 16,109,54,42,52,10,62,65,59,2,0,-35,-30,-35,-18,-33,-9,-16,0,0,0,10,0,0,20,-56,0,-39,-16,-357,8,18,29,0,0,0,0,0,0,0,0,-4,0,0,41,42,34,32,29,29,30,8,11,8,10,12,12,12,12,12,39,43,31,23,34,33,54,28,33,32,32,23,23,32,32,0,0,0,0,0,0,-3,-3,-3,-3,-3,-3,-8,-8,-8,-8,-8,-8,-8,0,0]} 1. e4 {[%emt 1:31:00]} c5 {[%emt 1:31:00]} 2. Nf3 {[%emt 0:00:30]} Nc6 {[%emt 0:00:30]} 3. d4 {[%emt 0:00:30]} cxd4 {[%emt 0:00:30]} 4. Nxd4 {[%emt 0:00:30]} Qb6 {[%emt 0:00:30]} 5. Nb3 {[%emt 0:00:30]} Nf6 {[%emt 0:00:30]} 6. Nc3 {[%emt 0:00:30]} e6 {[%emt 0:00:30]} 7. Be3 {[%emt 0:00:30]} Qc7 {[%emt 0:00:30]} 8. f4 {[%emt 0:00:30]} d6 {[%emt 0:00:30]} 9. Qf3 {[%emt 0:00:30]} a6 {[%emt 0:00:30] B33: Sicilian: Pelikan and Sveshnikov Variations.} 10. g4 {[%emt 0:00:30][%cal Bg2g4,Bg4g5][%mdl 32]} b5 {[%emt 0:00:30]} ({Black should try} 10... d5 $11) 11. g5 {[%emt 0:00:30] White is more active.} Nd7 {[%emt 0:00:30] [#] White is slightly better.} 12. Bh3 $146 {[%emt 0:00:30]} (12. a3 $14) ({Predecessor:} 12. O-O-O Bb7 13. Qh3 b4 14. Na4 Rc8 15. Bd3 Be7 16. g6 Nf6 17. gxf7+ Kxf7 18. Rhg1 {1-0 (25) Anton Guijarro,D (2688)-Vishnu,P (2476) Chess.com INT 2020}) 12... Nb6 {[%emt 0:00:30]} 13. Bxb6 {[%emt 0:00:30]} Qxb6 {[%emt 0:00:30]} 14. O-O-O {[%emt 0:00:30]} Be7 {[%emt 0:00:30]} (14... a5 $5 {[%cal Ra5a4]}) 15. Rhe1 {[%emt 0:00:30][%cal Oc3d5]} O-O {[%emt 0:00:30]} 16. Nd5 {[%emt 0:00:30]} exd5 {[%emt 0:00:30]} 17. exd5 {[%emt 0:00:30]} Ne5 {[%emt 0:00:30]} 18. fxe5 {[%emt 0:00:30]} Bxg5+ {[%emt 0:00:30]} 19. Kb1 {[%emt 0:00:30]} dxe5 {[%emt 0:00:30]} 20. Rxe5 {[%emt 0:00:30]} ({Better is} 20. Bxc8 $11 Raxc8 21. Rxe5) 20... Bf6 {[%emt 0:00:30]} (20... Qf6 $15 21. Qxf6 gxf6) 21. Rh5 {[%emt 0:00:30]} Bb7 {[%emt 0:00:30]} 22. Rxh7 $2 {[%emt 0:00:30][%mdl 8192]} g6 $2 {[%emt 0:00:30] [#]} ({Black should play} 22... Kxh7 $19 23. Qh5+ Kg8) 23. Nc5 $1 $11 {[%emt 0:00:30] And now Nd7 would win.} Bxb2 $1 {[%emt 0:00:30]} ({Don't play} 23... Qxc5 {[#]} 24. Qxf6 $1 Kxh7 25. Rd4 Qxd4 26. Qxd4 $16) 24. Nd7 {[%emt 0:00:30]} (24. Kxb2 $5 {[%cal Rc5d7]} Kxh7 25. Rd4 Qxc5 26. Qf6 Qxd4+ 27. Qxd4 $11) 24... Qd6 $1 {[%emt 0:00:30]} 25. Rh4 {[%emt 0:00:30] The board is on fire.} Bg7 {[%emt 0:00:30] aiming for ...Rfd8.} (25... Qe7 $2 26. Re4 Qa3 27. Rd3 $18 (27. Qxa3 Bxa3 28. Re3 Bd6 $16)) 26. Nxf8 {[%emt 0:00:30]} Rxf8 {[%emt 0:00:30]} 27. Qg3 $1 {[%emt 0:00:30]} Be5 {[%emt 0:00:30]} 28. Qe3 {[%emt 0:00:30]} Re8 {[%emt 0:00:30]} 29. Bg2 {[%emt 0:00:30]} Rc8 {[%emt 0:00:30]} 30. Re1 {[%emt 0:00:30][%cal Bd1e1,Be1e7,Be7b7][%mdl 32]} ({Stronger than} 30. Qh6 Qa3 31. Rdd4 Rc4 32. Qh7+ Kf8 33. Qh6+ Bg7 $19) 30... Bc3 {[%emt 0:00:30] This bishop pair is nice.} 31. Qe7 {[%emt 0:00:30]} Qxe7 {[%emt 0:00:30][%mdl 64] Remove Defender} 32. Rxe7 Bf6 {[%emt 0:00:30][%csl LRe7,LRh4] [#]} 33. Rxb7 {[%emt 0:01:00]} Bxh4 {[%emt 0:00:30][%mdl 4096] Endgame KRB-KRB} 34. d6 {[%emt 0:00:30]} Rd8 {[%emt 0:00:30]} 35. d7 {[%emt 0:00:30]} Kf8 {[%emt 0:00:30]} 36. Bc6 {[%emt 0:00:30]} Bf2 {[%emt 0:00:30] Inhibits Rb6.} 37. a4 {[%emt 0:00:30]} bxa4 {[%emt 0:00:30]} 38. Bxa4 {[%emt 0:00:30]} Ke7 {[%emt 0:00:30]} 39. c4 {[%emt 0:00:30]} Kd6 {[%emt 0:00:30]} 40. Kc2 {[%emt 0:00:30]} Bc5 {[%emt 0:00:30]} 41. Kd3 {[%emt 0:00:30]} Rh8 {[%emt 0:00:30]} 42. h4 {[%emt 0:00:30]} Bf2 {[%emt 0:00:30]} 43. Rb2 {[%emt 0:00:30]} Bxh4 {[%emt 0:00:30]} 44. Rb6+ {[%emt 0:00:30]} Kc7 {[%emt 0:00:30]} 45. c5 {[%emt 0:00:30]} Rh5 {[%emt 0:00:30] The position is equal.} 46. Rxa6 {[%emt 0:00:30]} Rxc5 {[%emt 0:00:30]} 47. Ra8 {[%emt 0:00:30]} Rd5+ {[%emt 0:00:30]} 48. Ke4 {[%emt 0:00:30]} Rd6 {[%emt 0:00:30]} 49. Rc8+ {[%emt 0:00:30]} Kb6 {[%emt 0:00:30]} 50. Rf8 {[%emt 0:00:30]} f5+ {[%emt 0:00:30]} 51. Ke3 {[%emt 0:00:30]} Bg5+ {[%emt 0:00:30]} 52. Kf3 {[%emt 0:00:30]} Ka5 {[%emt 0:00:30]} 53. Bc2 {[%emt 0:00:30] Inhibits Rd3+.} Kb4 {[%emt 0:00:30]} 54. Rg8 {[%emt 0:00:30]} Rxd7 {[%emt 0:00:30]} 55. Rxg6 {[%emt 0:00:30] Weighted Error Value: White=0.24 (precise) /Black=0.18 (very precise)} 1/2-1/2

[Event "3rd VIZAG GM-Open 2022"]
[Site "Visakapatnam"]
[Date "2022.06.13"]
[Round "5.16"]
[White "Azaladze, Shota"]
[Black "Sriansh Das"]
[Result "1-0"]
[ECO "A07"]
[WhiteElo "2420"]
[BlackElo "1731"]
[Annotator "TA"]
[PlyCount "109"]
[EventDate "2022.06.13"]
[EventType "swiss"]
[EventCountry "IND"]
[SourceTitle "playchess.com"]
[Source "ChessBase"]
[SourceQuality "1"]
[TimeControl "5400+30"]

{[%evp 9,108,-5,7,-23,0,-28,12,5,17,-15,28,23,49,39,62,45,44,33,49,12,45,23,43,0,42,39,32,39,44,41,45,46,51,47,57,53,59,58,60,47,139,139,131,139,101,119,144,130,166,170,177,146,158,168,221,216,215,195,227,36,150,156,222,228,215,228,296,285,352,314,1059,1052,2833,2478,29973,29974,29974,29975,29974,29975,29973,29975,29978,29977,29977,29978,29977,29970,29979,29980,29980,29981,29981,29982,29981,29983,29982,29978,29987,29988,29999]} 1. Nf3 {[%emt 0:00:56]} d5 {[%emt 0:00:41]} 2. g3 {[%emt 0:00:24]} Nc6 {[%emt 0:00:51]} 3. Bg2 {[%emt 0:00:30]} e5 {[%emt 0:00:08]} 4. d3 {[%emt 0:00:03]} Nf6 {[%emt 0:00:10]} 5. O-O {[%emt 0:00:22]} Be7 {[%emt 0:00:23]} 6. c3 {[%emt 0:03:52] A07: Réti Opening: New York and Capablanca Systems.} h6 {[%emt 0:00:35]} 7. b4 {[%emt 0:00:06]} a6 {[%emt 0:01:03]} 8. a3 {[%emt 0:01:34] The position is equal.} Be6 {[%emt 0:01:54]} 9. Qc2 {[%emt 0:00:05]} O-O {[%emt 0:01:23]} 10. Nbd2 {[%emt 0:00:04] [#]} Nh7 $146 {[%emt 0:06:58]} ({Predecessor:} 10... Qd7 11. Bb2 Bh3 12. Rad1 Bxg2 13. Kxg2 Rfe8 14. e4 dxe4 15. dxe4 Qe6 16. c4 Red8 {1-0 (63) Volkov,S (2620)-Timofeev,A (2575) chessassistantclub.com INT 2004}) 11. c4 {[%emt 0:04:03]} f6 {[%emt 0:13:57]} 12. cxd5 {[%emt 0:03:17]} Bxd5 {[%emt 0:00:13]} 13. Bb2 {[%emt 0:00:11]} Qd7 {[%emt 0:04:27]} 14. Rac1 {[%emt 0:00:32]} Rac8 {[%emt 0:00:23]} 15. Rfd1 {[%emt 0:00:22]} Rfd8 {[%emt 0:01:26]} 16. Ne4 {[%emt 0:02:12]} Ng5 {[%emt 0:04:06]} 17. Nexg5 {[%emt 0:05:47]} hxg5 {[%emt 0:00:19]} 18. e4 {[%emt 0:00:08][%cal Be2e4,Be4e5][%mdl 32]} Be6 {[%emt 0:09:27]} 19. d4 {[%emt 0:00:03]} exd4 {[%emt 0:00:16]} 20. Nxd4 {[%emt 0:00:31]} Nxd4 {[%emt 0:00:05]} 21. Rxd4 {[%emt 0:00:05]} Qb5 {[%emt 0:04:26]} 22. Rxd8+ {[%emt 0:00:58]} Rxd8 {[%emt 0:02:01]} 23. e5 {[%emt 0:00:51] Hoping for exf6.} f5 {[%emt 0:04:28]} 24. Qxc7 {[%emt 0:01:14]} Qe2 {[%emt 0:00:40] [#]} (24... Kf7 $14) 25. Bf1 $1 $16 {[%emt 0:07:08]} Qxb2 {[%emt 0:04:24]} 26. Rc2 {[%emt 0:01:21]} ({Don't play} 26. Qxe7 $6 Qxc1 27. Qxd8+ Kh7 $11) 26... Qb3 {[%emt 0:12:41]} 27. Qxe7 {[%emt 0:00:55]} Qxc2 {[%emt 0:02:27]} 28. Qxd8+ {[%emt 0:00:33][%mdl 4096] Endgame KQB-KQB} Kh7 {[%emt 0:02:46]} 29. Qxg5 {[%emt 0:00:27] Qh5+ is the strong threat.} Qd1 {[%emt 0:00:06] Prevents Qh5+.} 30. h4 {[%emt 0:06:57]} Kg8 {[%emt 0:02:52]} 31. Qf4 {[%emt 0:02:45] Against Bc4} b5 {[%emt 0:01:55]} (31... b6 {is a better defense.} 32. Kg2 b5) 32. Kg2 $18 {[%emt 0:05:39]} Bd5+ {[%emt 0:00:36]} 33. f3 $1 {[%emt 0:00:08]} Qc2+ {[%emt 0:00:26]} 34. Kg1 $2 {[%emt 0:09:02]} ({White must play} 34. Kh3 $1 $18) 34... Qd1 {[%emt 0:00:30] [#]} (34... Qb1 $14 35. Kg2 Qb2+ 36. Kh3 Qa1) 35. Kf2 $1 $16 {[%emt 0:00:52]} ({Of course not} 35. Qxf5 $6 Bc4 $11) 35... Qc2+ {[%emt 0:00:31] [#]} 36. Be2 $1 {[%emt 0:01:41]} Bc4 {[%emt 0:00:32]} 37. Qe3 {[%emt 0:00:02] aiming for e6.} Kf7 {[%emt 0:02:52]} 38. g4 {[%emt 0:05:07]} g6 {[%emt 0:01:53]} 39. h5 {[%emt 0:00:28]} g5 $2 {[%emt 0:01:10]} (39... fxg4 40. fxg4 gxh5) 40. gxf5 $18 {[%emt 0:00:19]} Bxe2 {[%emt 0:01:54]} 41. Qxe2 {[%emt 0:00:16]} Qxf5 {[%emt 0:00:12] KQ-KQ} 42. Qe4 {[%emt 0:00:08] White mates.} Qh3 {[%emt 0:00:35]} 43. Qg6+ {[%emt 0:40:02]} Kf8 {[%emt 0:00:09]} 44. Qxg5 {[%emt 0:00:00]} Qh2+ {[%emt 0:00:01]} 45. Ke3 {[%emt 0:00:00]} Qh1 {[%emt 0:00:16]} 46. Ke4 {[%emt 0:00:00]} Qb1+ {[%emt 0:00:43]} 47. Kd5 {[%emt 0:00:00]} Qb3+ {[%emt 0:01:38]} 48. Kc5 {[%emt 0:00:00]} Qc4+ {[%emt 0:01:04]} 49. Kb6 {[%emt 0:00:00]} Qe6+ {[%emt 0:00:24]} 50. Ka5 {[%emt 0:00:00]} Qc8 {[%emt 0:00:51]} 51. Qf6+ {[%emt 0:00:00]} Kg8 {[%emt 0:00:06]} 52. h6 {[%emt 0:00:00][%csl Gh6][%cal Rf6g7]} Qc7+ {[%emt 0:00:03]} 53. Qb6 {[%emt 0:00:00]} Qc3 {[%emt 0:00:24]} 54. Qg6+ {[%emt 0:00:00]} Kh8 {[%emt 0:00:10]} 55. Qg7# {[%emt 0:06:00] Weighted Error Value: White=0.15 (very precise) /Black=0.33} 1-0

[Event "3rd VIZAG GM-Open 2022"]
[Site "Visakapatnam"]
[Date "2022.06.13"]
[Round "5.17"]
[White "Pawar, Harshit"]
[Black "Hossain, Enamul"]
[Result "1/2-1/2"]
[ECO "B13"]
[WhiteElo "1961"]
[BlackElo "2413"]
[Annotator "TA"]
[PlyCount "133"]
[EventDate "2022.06.13"]
[EventType "swiss"]
[EventCountry "IND"]
[SourceTitle "playchess.com"]
[Source "ChessBase"]
[SourceQuality "1"]
[TimeControl "5400+30"]

{[%evp 17,133,24,17,16,75,76,81,45,74,72,68,64,64,61,72,33,33,33,29,29,36,16,23,15,100,37,85,68,61,63,66,53,60,61,114,106,116,67,85,28,42,37,27,18,35,21,54,40,79,0,87,53,86,33,39,0,5,-23,-26,-22,-22,-23,-7,-27,-21,-37,-19,-19,-19,-19,-3,-19,-16,-19,-19,-20,-20,-33,-33,-33,-33,-50,-33,-36,-31,-64,0,0,20,0,0,0,0,0,0,0,0,-4,-4,-4,-8,-8,0,0,0,0,0,0,0,0,0,0,0,0,0,0,0,0]} 1. d4 {[%emt 0:01:03]} d5 {[%emt 0:00:51]} 2. Nf3 {[%emt 0:00:11]} Nf6 {[%emt 0:01:08]} 3. Bf4 {[%emt 0:00:30]} c5 {[%emt 0:01:07]} 4. e3 {[%emt 0:00:20]} cxd4 {[%emt 0:00:12]} 5. exd4 {[%emt 0:00:09]} Nc6 {[%emt 0:00:07]} 6. c3 {[%emt 0:07:03]} g6 {[%emt 0:00:59]} 7. Bd3 {[%emt 0:01:08]} Bg7 {[%emt 0:00:19]} 8. h3 {[%emt 0:02:33]} O-O {[%emt 0:00:37]} 9. Nbd2 {[%emt 0:00:28]} Nd7 {[%emt 0:03:14]} 10. O-O {[%emt 0:05:57] B13: Caro-Kann: Exchange Variation and Panov-Botvinnik Attack.} f6 {[%emt 0:00:49]} (10... e5 $11 11. Nxe5 Ndxe5 12. dxe5 Nxe5) 11. Qb3 $16 {[%emt 0:03:41] [#]} e6 $146 {[%emt 0:04:09]} ({Predecessor:} 11... Nb6 12. Rfe1 Re8 13. Rad1 Kh8 14. Qc2 e5 15. dxe5 fxe5 16. Bg5 Qd6 17. Nf1 Rf8 {1-0 (56) Tomilova,E (2300)-Nasybullina,A (2162) Sochi 2017}) 12. Rae1 {[%emt 0:13:16] White is better.} Re8 {[%emt 0:00:24]} 13. Re2 {[%emt 0:02:00] White is much more active. The black rooks are badly placed.} Nb6 {[%emt 0:06:08]} 14. Rfe1 {[%emt 0:01:32]} Bd7 {[%emt 0:01:15]} 15. h4 {[%emt 0:14:22]} Rc8 {[%emt 0:04:25]} 16. Qa3 {[%emt 0:01:01]} Bf8 {[%emt 0:01:00]} 17. Bd6 {[%emt 0:06:17]} Bxd6 {[%emt 0:04:23]} 18. Qxd6 {[%emt 0:00:02][%cal Oh4h5]} Qc7 {[%emt 0:00:28]} 19. Qc5 {[%emt 0:04:10]} Nd8 {[%emt 0:08:08]} 20. Qb4 {[%emt 0:09:23]} a5 {[%emt 0:13:10]} (20... Nf7 $11 {remains equal.}) 21. Qb3 {[%emt 0:05:17]} (21. Qxa5 $16 Ra8 22. Qb4 (22. Qc5 Nc6 $11)) 21... Ba4 {[%emt 0:02:45]} (21... a4 $14 {might be stronger.} 22. Qc2 Re7) 22. Qa3 {[%emt 0:00:14][%cal Oh4h5]} Qe7 {[%emt 0:00:29]} 23. Qxe7 {[%emt 0:00:50]} Rxe7 {[%emt 0:00:01]} 24. Nb3 {[%emt 0:00:50]} Bxb3 {[%emt 0:02:43]} 25. axb3 {[%emt 0:00:18][%cal Oh4h5]} a4 {[%emt 0:00:25]} (25... Kf7 $14) 26. bxa4 {[%emt 0:01:56]} Nxa4 {[%emt 0:00:02]} 27. Nh2 {[%emt 0:03:53]} (27. h5 $16) 27... Nb6 {[%emt 0:02:15]} 28. Ra1 {[%emt 0:00:50]} (28. g4 $16) 28... Kg7 {[%emt 0:04:06]} 29. Nf3 {[%emt 0:01:34]} Nc6 {[%emt 0:02:04]} 30. Bb5 {[%emt 0:00:36]} h5 {[%emt 0:03:15]} 31. g3 {[%emt 0:00:31]} Nd8 {[%emt 0:00:31][%cal Bc6d8,Bd8f7,Bf7d6][%mdl 32]} 32. Bd3 {[%emt 0:00:41]} Nd7 {[%emt 0:02:50]} 33. Bb5 {[%emt 0:01:45]} (33. Ra5 $16) 33... Nf8 {[%emt 0:00:23]} (33... Nb6 $1 $11 {keeps the balance.}) 34. Ra7 {[%emt 0:02:06]} Nf7 {[%emt 0:02:45]} 35. Nd2 {[%emt 0:00:57]} (35. Ne1 $16) 35... Nd6 $14 {[%emt 0:00:24]} 36. Ba4 {[%emt 0:00:51]} Kf7 {[%emt 0:04:15]} 37. Re1 {[%emt 0:01:32]} b5 {[%emt 0:00:31]} 38. Rxe7+ {[%emt 0:00:08]} Kxe7 {[%emt 0:00:02]} 39. Bb3 {[%emt 0:01:18]} Nc4 {[%emt 0:00:50]} 40. Bxc4 {[%emt 0:00:02]} bxc4 $11 {[%emt 0:00:06][%mdl 4096] Endgame KRN-KRN} 41. Rb1 {[%emt 0:00:29]} Nd7 {[%emt 0:02:08]} 42. b3 {[%emt 0:00:33]} cxb3 {[%emt 0:00:48]} 43. Rxb3 {[%emt 0:00:02]} Rc6 {[%emt 0:00:14]} 44. Kf1 {[%emt 0:00:21]} Ra6 {[%emt 0:01:02]} 45. Ke2 {[%emt 0:00:56]} Ra2 {[%emt 0:00:16]} 46. Ke3 {[%emt 0:00:56]} e5 {[%emt 0:06:22]} 47. dxe5 {[%emt 0:04:31]} fxe5 {[%emt 0:00:33]} 48. Nf3 {[%emt 0:02:37]} Kd6 {[%emt 0:01:49]} 49. Rb7 {[%emt 0:00:44][%cal Ob7d7]} e4 {[%emt 0:05:40]} 50. Nd4 {[%emt 0:00:22]} Ne5 {[%emt 0:00:38][%cal Og6g5] [#] ...g5! is the strong threat.} 51. f3 {[%emt 0:00:37]} Rg2 {[%emt 0:05:09]} (51... exf3 $1 $15 52. Nxf3 Nc4+ 53. Kd4 Re2) 52. Rb6+ {[%emt 0:01:31] The position is equal.} Kd7 {[%emt 0:01:15] Strongly threatening ...Nc4+.} 53. Rb7+ {[%emt 0:01:28]} Kc8 {[%emt 0:00:50]} 54. Re7 {[%emt 0:00:06]} Nxf3 {[%emt 0:00:02]} 55. Kf4 {[%emt 0:00:59]} ({Of course not} 55. Nxf3 Rxg3 56. Kd4 (56. Re8+ $2 Kd7 $19) 56... exf3 $17) 55... Rf2 {[%emt 0:02:40] [#] Threatens to win with ...Nxd4+.} 56. Ke3 {[%emt 0:00:28]} Rd2 {[%emt 0:00:36] Hoping for ...Rd3+.} 57. Nxf3 {[%emt 0:00:33] KRN-KR} Rd3+ {[%emt 0:00:01]} 58. Kf4 {[%emt 0:00:29]} Rxf3+ {[%emt 0:00:03] KR-KR} ({Don't play} 58... exf3 59. Rf7 $15) 59. Ke5 {[%emt 0:00:08]} Rxc3 {[%emt 0:02:23] And now ...Rd3 would win.} 60. Kxd5 {[%emt 0:00:07]} Rxg3 {[%emt 0:00:19] White must now prevent ...e3.} 61. Rxe4 {[%emt 0:00:51]} Kd7 {[%emt 0:00:08]} 62. Ke5 {[%emt 0:00:27]} Rf3 {[%emt 0:00:15]} 63. Rf4 {[%emt 0:00:37]} Rxf4 {[%emt 0:01:21]} 64. Kxf4 {[%emt 0:00:02]} Ke7 {[%emt 0:00:05]} 65. Ke4 {[%emt 0:00:33]} Ke6 {[%emt 0:00:31]} 66. Kf4 {[%emt 0:00:04]} Kf6 {[%emt 0:00:04]} 67. Ke4 {[%emt 0:02:14] Weighted Error Value: White=0.15 (very precise) /Black=0.17 (very precise)} 1/2-1/2

[Event "3rd VIZAG GM-Open 2022"]
[Site "Visakapatnam"]
[Date "2022.06.13"]
[Round "5.18"]
[White "Baghirova, Khatun"]
[Black "Abdurakhmonov, Mukhammadali"]
[Result "0-1"]
[ECO "B90"]
[WhiteElo "1866"]
[BlackElo "2308"]
[Annotator "TA"]
[PlyCount "118"]
[EventDate "2022.06.13"]
[EventType "swiss"]
[EventCountry "IND"]
[SourceTitle "playchess.com"]
[Source "ChessBase"]
[SourceQuality "1"]
[TimeControl "5400+30"]

{[%evp 12,118,0,0,16,22,19,18,17,-9,-25,-30,20,-7,-4,-11,-1,-17,33,-7,-5,-28,-35,-93,-101,-86,-85,-100,-35,-41,-25,-48,-45,-56,-42,-79,-74,-84,-67,-90,-73,-94,-60,-85,-82,-96,-100,-277,-297,-295,-271,-259,-259,-266,-243,-244,-245,-245,-212,-277,-255,-270,-265,-259,-258,-405,-384,-552,-545,-919,-917,-954,-1000,-895,-481,-850,-812,-5289,-5591,-4271,-4714,-1772,-2643,-5533,-5181,-29964,-29966,-29968,-29963,-29963,-29959,-29967,-29968,-29980,-29981,-29981,-29979,-29979,-29979,-29979,-29980,-29982,-29983,-29984,-29984,-29980,-29981,-29982,-29982]} 1. e4 {[%emt 0:03:36]} c5 {[%emt 0:00:12]} 2. Nf3 {[%emt 0:00:03]} d6 {[%emt 0:00:14]} 3. d4 {[%emt 0:00:07]} cxd4 {[%emt 0:00:05]} 4. Nxd4 {[%emt 0:00:03]} Nf6 {[%emt 0:00:07]} 5. Nc3 {[%emt 0:00:10]} a6 {[%emt 0:00:04]} 6. a4 {[%emt 0:00:05]} e5 {[%emt 0:02:59]} 7. Nb3 {[%emt 0:00:14]} h6 {[%emt 0:00:48] 7...Be7 is setting a new trend. B90: Sicilian Najdorf: Unusual White 6th moves, 6 Be3 Ng4 and 6 Be3 e5.} 8. Be2 {[%emt 0:00:11]} Be7 {[%emt 0:00:08]} 9. O-O {[%emt 0:00:06]} Nc6 {[%emt 0:00:17] The position is equal.} 10. Kh1 {[%emt 0:01:36]} O-O {[%emt 0:04:21]} 11. f4 {[%emt 0:01:44]} Nb4 {[%emt 0:00:19] [#]} (11... Re8 $142) 12. Bf3 $146 {[%emt 0:06:11]} ({Predecessor:} 12. Be3 d5 13. fxe5 Nxe4 14. Nxe4 dxe4 15. Qxd8 Rxd8 16. Bb6 Rf8 17. c3 Nc6 18. Nd2 Nxe5 19. Nxe4 {0-1 (60) Protosovich,A-Vydeslaver,A (2350) Beersheba 1994}) 12... Be6 {[%emt 0:02:12]} 13. Be3 {[%emt 0:03:11]} Rc8 {[%emt 0:01:23]} 14. Rf2 {[%emt 0:04:45]} Qc7 {[%emt 1:24:21]} (14... exf4 $11 15. Bxf4 Qb6) 15. f5 {[%emt 0:05:46]} Bc4 {[%emt 0:00:00]} 16. Nd2 {[%emt 0:01:43]} d5 {[%emt 0:00:00]} 17. exd5 {[%emt 0:04:13]} (17. Nxc4 $15 d4 18. b3) 17... Bxd5 $17 {[%emt 0:00:00]} 18. Rc1 {[%emt 0:11:05]} Rfd8 {[%emt 0:00:00][%cal Oe5e4] [#] Strongly threatening ...e4!} 19. Qg1 {[%emt 0:05:09]} Bxf3 {[%emt 0:00:00]} ({Black should play} 19... Qd7 $17 {[%cal Oc8c3]} 20. Bb6 Re8) 20. gxf3 $15 {[%emt 0:07:47] Threatens to win with Bxh6.} Kh8 {[%emt 0:00:00] White must now prevent ...Nbd5.} 21. Rg2 {[%emt 0:02:31]} Rg8 {[%emt 0:03:30]} 22. Nde4 {[%emt 0:08:02]} Qd7 {[%emt 0:00:00]} 23. Ng3 {[%emt 0:05:11]} Nbd5 {[%emt 0:00:00]} 24. Nxd5 {[%emt 0:03:29]} Qxd5 {[%emt 0:00:00]} 25. Qf2 {[%emt 0:01:01]} Rc4 $36 {[%emt 0:00:00][%mdl 2048] White is under strong pressure.} 26. b3 {[%emt 0:05:26]} Rc3 {[%emt 0:00:00] ...Rgc8 is the strong threat. Black is more active.} 27. Ne2 {[%emt 0:01:17]} Rc6 {[%emt 0:00:00]} 28. Qg3 {[%emt 0:02:08]} e4 {[%emt 0:00:00]} 29. Nd4 $2 {[%emt 0:03:00] [#] Loses the game.} (29. fxe4 $17 {was worth a try.} Qxe4 30. c3) 29... Rc3 $1 $19 {[%emt 0:00:00]} 30. f4 {[%emt 0:04:59]} Bc5 {[%emt 0:00:00]} 31. Rd1 {[%emt 0:00:52]} Bxd4 {[%emt 0:00:00]} 32. Rxd4 {[%emt 0:00:07]} Qxf5 {[%emt 0:00:00]} 33. Rd6 {[%emt 0:02:13]} Kh7 {[%emt 0:00:00] Hoping for ...Nd5.} 34. Qe1 {[%emt 0:01:23]} Rc6 {[%emt 0:06:30]} 35. Rdd2 {[%emt 0:03:01]} b5 {[%emt 0:00:00]} 36. axb5 {[%emt 0:00:44]} axb5 {[%emt 0:00:00]} ({Weaker is} 36... Qxb5 37. Bd4 $17) 37. Qh4 {[%emt 0:00:34]} Rc3 {[%emt 0:00:00]} 38. Rg5 {[%emt 0:03:50]} (38. Qe1 $142) 38... Qc8 {[%emt 0:00:00]} 39. Bd4 {[%emt 0:01:38]} (39. Rg3 $142 Rxc2 40. Rd1) 39... Rxc2 {[%emt 0:00:00]} 40. Rxc2 {[%emt 0:00:36]} Qxc2 {[%emt 0:00:00]} 41. Bxf6 {[%emt 0:00:12]} Qd1+ {[%emt 0:00:00]} 42. Kg2 {[%emt 0:00:35]} Qf3+ {[%emt 0:00:00]} 43. Kg1 {[%emt 0:00:07]} e3 {[%emt 0:00:00]} 44. Bxg7 {[%emt 0:00:59]} Qf2+ {[%emt 0:00:00]} 45. Qxf2 {[%emt 0:00:14]} exf2+ {[%emt 0:00:00]} 46. Kxf2 {[%emt 0:00:08]} hxg5 {[%emt 0:00:00][%mdl 4096] Endgame KR-KB} 47. Be5 {[%emt 0:00:17]} Kg6 {[%emt 0:00:00] ( -> ...Kf5)} 48. fxg5 {[%emt 0:00:37]} Kxg5 {[%emt 0:00:00] Black mates.} 49. Ke3 {[%emt 0:00:30]} Kf5 {[%emt 0:00:00]} 50. Bg3 {[%emt 0:00:20]} Rd8 {[%emt 0:00:00]} 51. b4 {[%emt 0:00:28]} Kg4 {[%emt 0:00:00]} 52. Ke4 {[%emt 0:00:14]} f5+ {[%emt 0:00:00][%cal Bf7f5,Bf5f4][%mdl 32]} 53. Ke5 {[%emt 0:00:29]} f4 {[%emt 0:00:00]} 54. Bf2 {[%emt 0:00:29]} f3 {[%emt 0:00:00]} 55. Ke4 {[%emt 0:00:47]} Re8+ {[%emt 0:00:00]} 56. Kd3 {[%emt 0:00:23]} Kh3 {[%emt 0:00:00]} 57. Bg3 {[%emt 0:00:22]} Kg2 {[%emt 0:00:02]} 58. Kd4 {[%emt 0:00:12]} Rc8 {[%emt 0:00:43]} 59. Kd5 {[%emt 0:00:21]} Rc4 {[%emt 0:00:04] Weighted Error Value: White=0.51/Black=0.06 (flawless)} 0-1